bitfinex/quotes_BTCUSD_20251027
["timestamp","ask_amount","ask_price","bid_price","bid_amount"]
[1761606095290,1.28942654,114030.0,114020.0,0.00440602]
[1761606095727,1.28942654,114030.0,114020.0,0.21628602]
[1761606095933,1.28942654,114030.0,114020.0,0.21208602]
[1761606098349,0.65087884,114030.0,114020.0,0.21208602]
[1761606098997,0.65087884,114030.0,114020.0,0.21108602]
[1761606099207,1.28942654,114030.0,114020.0,0.21108602]
[1761606099629,0.65087884,114030.0,114020.0,0.22677602]
[1761606099846,0.65087884,114030.0,114020.0,0.21108602]
[1761606100064,1.17027049,114030.0,114020.0,0.21108602]
[1761606100898,0.51540782,114020.0,114010.0,0.01219]
[1761606101103,0.60522683,114020.0,114010.0,0.23968]
[1761606101336,0.60522683,114020.0,114010.0,0.20753]
[1761606101563,0.60522683,114020.0,114010.0,0.26365]
[1761606101812,0.60522683,114020.0,114010.0,0.02788]
[1761606102255,0.61422683,114020.0,114010.0,0.02788]
[1761606102516,0.61422683,114020.0,114010.0,0.23968]
[1761606104059,0.61422683,114020.0,114010.0,0.26365]
[1761606104695,0.27422683,114020.0,114010.0,0.26365]
[1761606105990,0.27422683,114020.0,114010.0,0.26465]
[1761606106211,0.27422683,114020.0,114010.0,0.4390732]
[1761606106632,0.27422683,114020.0,114010.0,0.43928296]
[1761606106633,0.09881901,114020.0,114010.0,0.43928296]
[1761606106856,0.09881901,114020.0,114010.0,0.51215209]
[1761606107091,0.09881901,114020.0,114010.0,0.51315209]
[1761606108003,0.08981901,114020.0,114010.0,0.51315209]
[1761606108422,0.08981901,114020.0,114010.0,0.51215209]
[1761606108634,0.08981901,114020.0,114010.0,0.51315209]
[1761606108856,0.09781901,114020.0,114010.0,0.51315209]
[1761606109295,0.09781901,114020.0,114010.0,0.53948137]
[1761606109717,0.09731035,114020.0,114010.0,0.53948137]
[1761606111020,0.09731035,114020.0,114010.0,1.05887302]
[1761606111222,0.09731035,114020.0,114010.0,1.03254374]
[1761606111444,0.008,114020.0,114010.0,1.03254374]
[1761606111866,0.008,114020.0,114010.0,1.03203705]
[1761606112072,0.008,114020.0,114010.0,1.37203705]
[1761606112908,0.008,114020.0,114010.0,0.8526454]
[1761606113126,0.008,114020.0,114010.0,1.37203705]
[1761606113783,0.008,114020.0,114010.0,1.5835634]
[1761606114036,0.00048511,114030.0,114020.0,0.17640782]
[1761606114266,0.00048511,114030.0,114020.0,1.01283483]
[1761606114518,0.00048511,114030.0,114020.0,0.30588683]
[1761606115046,0.00048511,114030.0,114020.0,1.03680483]
[1761606115484,0.00448511,114030.0,114020.0,1.04880483]
[1761606117345,0.00448511,114030.0,114020.0,1.07034583]
[1761606117552,0.09430412,114030.0,114020.0,0.31788683]
[1761606117762,0.09430412,114030.0,114020.0,0.22706782]
[1761606118011,0.09430412,114030.0,114020.0,0.43866782]
[1761606119444,0.63515556,114030.0,114020.0,0.43866782]
[1761606119655,0.63525556,114030.0,114020.0,0.02769]
[1761606119860,0.63525556,114030.0,114020.0,0.23929]
[1761606120057,0.63525556,114030.0,114020.0,0.2236]
[1761606120265,0.63515556,114030.0,114020.0,0.26436]
[1761606120505,0.09430412,114030.0,114020.0,0.43976782]
[1761606120715,0.09030412,114030.0,114020.0,0.42776782]
[1761606121140,0.09830412,114030.0,114020.0,0.42976782]
[1761606121344,0.09830412,114030.0,114020.0,0.42776782]
[1761606121585,0.09830412,114030.0,114020.0,0.79322682]
[1761606121804,0.12630412,114030.0,114020.0,0.88804583]
[1761606122003,0.09030412,114030.0,114020.0,0.88404583]
[1761606122383,0.09030412,114030.0,114020.0,0.51858683]
[1761606122556,0.09030412,114030.0,114020.0,0.88404583]
[1761606123272,0.09030412,114030.0,114020.0,0.82812583]
[1761606123477,0.09830412,114030.0,114020.0,1.42710483]
[1761606124158,0.09830412,114030.0,114020.0,1.06164583]
[1761606124337,0.09030412,114030.0,114020.0,1.05964583]
[1761606124676,0.09530412,114030.0,114020.0,1.06164583]
[1761606125873,0.09530412,114030.0,114020.0,1.42710483]
[1761606126481,0.00548511,114030.0,114020.0,1.42710483]
[1761606131387,0.00548511,114030.0,114020.0,0.69618683]
[1761606131603,0.00548511,114030.0,114020.0,1.42710483]
[1761606132229,0.00548511,114030.0,114020.0,1.43840483]
[1761606133138,0.00548511,114030.0,114020.0,1.77840483]
[1761606134186,0.00548511,114030.0,114020.0,2.14386383]
[1761606135241,0.00548511,114030.0,114020.0,2.22386383]
[1761606135892,0.00048511,114030.0,114020.0,2.22186383]
[1761606136356,0.00248511,114030.0,114020.0,2.22586383]
[1761606139094,0.00248511,114030.0,114020.0,1.86040483]
[1761606139977,0.00248511,114030.0,114020.0,1.86008483]
[1761606142578,0.00248511,114030.0,114020.0,0.74128683]
[1761606142779,0.09230412,114030.0,114020.0,0.78812683]
[1761606143119,0.09230412,114030.0,114020.0,0.70812683]
[1761606145358,0.26769656,114030.0,114020.0,0.70812683]
[1761606145568,0.63315556,114030.0,114020.0,0.23146782]
[1761606145794,0.0009974,114050.0,114040.0,0.17637706]
[1761606145998,0.0009974,114050.0,114040.0,1.06306238]
[1761606146202,0.0009974,114050.0,114040.0,1.10217238]
[1761606146401,0.17530135,114090.0,114070.0,0.17532709]
[1761606146608,0.08981901,114080.0,114070.0,0.21139666]
[1761606146809,0.08981901,114080.0,114070.0,0.44665666]
[1761606147109,0.08981901,114080.0,114070.0,0.47356666]
[1761606147110,0.09044777,114080.0,114070.0,0.47356666]
[1761606147515,0.09044777,114080.0,114070.0,0.84002566]
[1761606147931,0.09044777,114080.0,114070.0,0.47456666]
[1761606148388,0.09044777,114080.0,114070.0,0.47404666]
[1761606149238,0.09844777,114080.0,114070.0,0.47604666]
[1761606149447,0.09844777,114080.0,114070.0,0.47504666]
[1761606150943,0.09844777,114080.0,114070.0,0.47604666]
[1761606152974,0.09844777,114080.0,114070.0,0.47504666]
[1761606155514,0.09844777,114080.0,114070.0,0.47604666]
[1761606157680,0.09844777,114080.0,114070.0,0.47504666]
[1761606157897,0.09844777,114080.0,114070.0,0.47604666]
[1761606159192,0.09844777,114080.0,114070.0,0.47504666]
[1761606159515,0.09844777,114080.0,114070.0,0.47604666]
[1761606161140,0.09844777,114080.0,114070.0,0.47504666]
[1761606163594,0.29010333,114080.0,114070.0,0.002]
[1761606163806,0.95081083,114080.0,114070.0,0.05808]
[1761606164031,0.95081083,114080.0,114070.0,0.21348]
[1761606165100,0.94281083,114080.0,114070.0,0.21148]
[1761606165325,0.98481083,114080.0,114070.0,0.21648]
[1761606167785,0.71247942,114080.0,114070.0,0.21648]
[1761606169233,1.07123192,114080.0,114070.0,0.005]
[1761606169444,1.07123192,114080.0,114070.0,0.21644]
[1761606171382,1.44479537,114080.0,114070.0,0.21644]
[1761606171810,1.44479537,114080.0,114070.0,0.16036]
[1761606172013,1.46106977,114080.0,114070.0,0.16036]
[1761606172219,0.1753463,114060.0,114050.0,0.05608]
[1761606172434,0.51536168,114050.0,114040.0,0.00012732]
[1761606172644,1.01826678,114050.0,114040.0,0.21152732]
[1761606173277,0.62989069,114050.0,114040.0,0.22778732]
[1761606173508,0.26518069,114050.0,114040.0,0.27318005]
[1761606173716,0.26518069,114050.0,114040.0,0.44855711]
[1761606174145,0.26518069,114050.0,114040.0,0.24894005]
[1761606174146,0.28989069,114050.0,114040.0,0.24894005]
[1761606174357,0.28989069,114050.0,114040.0,0.42431711]
[1761606174561,0.27355069,114050.0,114040.0,0.44955711]
[1761606174794,0.09681901,114050.0,114040.0,0.44955711]
[1761606175004,0.08981901,114050.0,114040.0,0.44855711]
[1761606175208,0.09381901,114050.0,114040.0,0.44955711]
[1761606175416,0.09381901,114050.0,114040.0,0.42840438]
[1761606176068,0.09381901,114050.0,114040.0,0.42940438]
[1761606176278,0.09381901,114050.0,114040.0,0.42840438]
[1761606180790,0.09331901,114050.0,114040.0,0.42840438]
[1761606182562,0.26868069,114050.0,114040.0,0.42840438]
[1761606182794,0.29215069,114050.0,114040.0,0.40416438]
[1761606183394,0.27705069,114050.0,114040.0,0.42682438]
[1761606183615,0.09331901,114050.0,114040.0,0.42682438]
[1761606185147,1.31684991,114050.0,114040.0,0.00112732]
[1761606185353,1.2949297,114050.0,114040.0,0.21248732]
[1761606185558,0.63215069,114050.0,114040.0,0.21248732]
[1761606185763,0.63215069,114050.0,114040.0,0.22785732]
[1761606189308,0.65476069,114050.0,114040.0,0.21248732]
[1761606190063,0.63215069,114050.0,114040.0,0.22870732]
[1761606190481,0.63215069,114050.0,114040.0,0.21248732]
[1761606190879,0.63215069,114050.0,114040.0,0.22870732]
[1761606191686,0.61705069,114050.0,114040.0,0.47163021]
[1761606191890,0.61705069,114050.0,114040.0,0.29625315]
[1761606192267,0.63332069,114050.0,114040.0,0.22870732]
[1761606192411,0.65593069,114050.0,114040.0,0.21248732]
[1761606192799,0.63332069,114050.0,114040.0,0.22870732]
[1761606193521,0.60868069,114050.0,114040.0,0.42775438]
[1761606193949,0.09331901,114050.0,114040.0,0.42775438]
[1761606194154,0.004,114050.0,114040.0,0.51857339]
[1761606194573,0.004,114050.0,114040.0,1.1566724]
[1761606195201,0.00020962,114060.0,114050.0,0.17636168]
[1761606195399,0.00020962,114060.0,114050.0,0.83813069]
[1761606195613,0.00020962,114060.0,114050.0,0.85435069]
[1761606195815,0.00020962,114060.0,114050.0,0.9441697]
[1761606196646,0.00020962,114060.0,114050.0,1.2841697]
[1761606196869,1e-08,114060.0,114050.0,1.32538072]
[1761606197079,1e-08,114060.0,114050.0,1.4601484]
[1761606197292,1e-08,114060.0,114050.0,1.68062839]
[1761606197504,1e-08,114060.0,114050.0,1.74347663]
[1761606197723,1e-08,114060.0,114050.0,1.73193723]
[1761606197932,0.1840855,114140.0,114120.0,0.17624756]
[1761606198141,0.1840855,114140.0,114120.0,0.22438342]
[1761606198142,0.08981901,114130.0,114120.0,0.22438342]
[1761606198355,0.08981901,114130.0,114120.0,0.47459342]
[1761606199220,0.08981901,114130.0,114120.0,0.47572074]
[1761606199456,0.08981901,114130.0,114120.0,0.48448344]
[1761606200531,0.09781901,114130.0,114120.0,0.48448344]
[1761606200745,0.08981901,114130.0,114120.0,0.48448344]
[1761606200948,0.08981901,114130.0,114120.0,0.27316344]
[1761606201167,0.27205777,114130.0,114120.0,0.10824732]
[1761606201445,1.29740678,114130.0,114120.0,0.21156732]
[1761606202095,1.29740678,114130.0,114120.0,0.21160732]
[1761606202980,1.29040678,114130.0,114120.0,0.21160732]
[1761606203422,1.29740678,114130.0,114120.0,0.21160732]
[1761606203623,1.29187318,114130.0,114120.0,0.21160732]
[1761606203797,1.29687318,114130.0,114120.0,0.21160732]
[1761606204204,1.29187318,114130.0,114120.0,0.21160732]
[1761606204413,1.29187318,114130.0,114120.0,0.00012732]
[1761606204610,1.29787318,114130.0,114120.0,0.21160732]
[1761606206304,1.29787318,114130.0,114120.0,0.00012732]
[1761606206519,1.29787318,114130.0,114060.0,0.18745519]
[1761606206520,0.17531556,114080.0,114060.0,0.18745519]
[1761606206744,0.17531556,114080.0,114070.0,0.2277]
[1761606206745,0.81341457,114080.0,114070.0,0.2277]
[1761606206967,0.17531556,114080.0,114070.0,0.2277]
[1761606207404,0.17531556,114080.0,114070.0,0.40303093]
[1761606207633,0.17531556,114080.0,114070.0,0.42670093]
[1761606208235,0.17531556,114080.0,114070.0,0.25137]
[1761606208749,0.08981901,114080.0,114070.0,0.47607837]
[1761606209245,0.27213457,114080.0,114070.0,0.47607837]
[1761606209463,0.08981901,114080.0,114070.0,0.47607837]
[1761606209675,0.08981901,114080.0,114070.0,0.47707837]
[1761606209876,0.09681901,114080.0,114070.0,0.47707837]
[1761606210641,0.08981901,114080.0,114070.0,0.47707837]
[1761606211197,0.08981901,114080.0,114070.0,0.47607837]
[1761606211408,0.27313457,114080.0,114070.0,0.47607837]
[1761606212042,0.09781901,114080.0,114070.0,0.47707837]
[1761606212249,0.09781901,114080.0,114070.0,0.47607837]
[1761606212456,0.09823817,114080.0,114070.0,0.47607837]
[1761606212670,0.09023817,114080.0,114070.0,0.47607837]
[1761606212876,0.09023817,114080.0,114070.0,1.11517738]
[1761606213093,0.09723817,114080.0,114070.0,0.47707837]
[1761606213285,0.09023817,114080.0,114070.0,0.47707837]
[1761606213688,0.09723817,114080.0,114070.0,0.47707837]
[1761606215951,0.09023817,114080.0,114070.0,0.47707837]
[1761606216152,0.09823817,114080.0,114070.0,0.47707837]
[1761606216615,0.09023817,114080.0,114070.0,0.47707837]
[1761606217164,0.00041916,114080.0,114070.0,1.11517738]
[1761606217583,0.00741916,114080.0,114070.0,1.11517738]
[1761606217980,0.00741916,114080.0,114070.0,1.45517738]
[1761606219307,0.00741916,114080.0,114070.0,1.48148694]
[1761606220169,0.00741916,114080.0,114070.0,0.63090793]
[1761606220377,0.00741916,114080.0,114070.0,0.42658093]
[1761606220378,0.09723817,114080.0,114070.0,0.42658093]
[1761606222104,0.09023817,114080.0,114070.0,0.42658093]
[1761606222514,0.09723817,114080.0,114070.0,0.42658093]
[1761606222954,0.09723817,114080.0,114070.0,0.21522093]
[1761606223163,0.09723817,114080.0,114070.0,0.47240346]
[1761606227139,0.09723817,114080.0,114070.0,0.47340346]
[1761606227581,0.27255373,114080.0,114070.0,0.47240346]
[1761606227796,0.09723817,114080.0,114070.0,0.47240346]
[1761606228518,0.27255373,114080.0,114070.0,0.47240346]
[1761606228742,0.28779373,114080.0,114070.0,0.01622]
[1761606228959,0.28779373,114080.0,114070.0,0.22754]
[1761606229177,0.27255373,114080.0,114070.0,0.25178]
[1761606230056,0.27255373,114080.0,114070.0,0.42711093]
[1761606230267,0.27255373,114080.0,114070.0,0.51159446]
[1761606230918,0.27255373,114080.0,114070.0,0.42711093]
[1761606235527,0.09723817,114080.0,114070.0,0.42711093]
[1761606236162,0.09723817,114080.0,114070.0,0.94696531]
[1761606236163,0.00741916,114080.0,114070.0,0.94696531]
[1761606236380,0.00741916,114080.0,114070.0,0.97817634]
[1761606236588,0.00741916,114080.0,114070.0,0.45932196]
[1761606236812,0.00741916,114080.0,114070.0,1.03466994]
[1761606237440,0.00741916,114080.0,114070.0,0.51581556]
[1761606237651,0.00741916,114080.0,114070.0,1.03466994]
[1761606238284,0.00041916,114080.0,114070.0,1.03466994]
[1761606238517,0.00741916,114080.0,114070.0,1.04166994]
[1761606240313,0.00741916,114080.0,114070.0,1.38166994]
[1761606240737,0.00741916,114080.0,114070.0,1.40797987]
[1761606241418,0.00041916,114080.0,114070.0,1.40097987]
[1761606241916,0.004,114100.0,114090.0,0.69515458]
[1761606242121,0.004,114100.0,114090.0,0.94938021]
[1761606242361,0.004,114100.0,114090.0,0.98834021]
[1761606242579,0.004,114100.0,114090.0,1.32834021]
[1761606242996,0.004,114100.0,114090.0,1.35464613]
[1761606243248,0.004,114100.0,114090.0,1.35364613]
[1761606243469,0.004,114100.0,114090.0,1.35464613]
[1761606244537,0.021,114100.0,114090.0,1.35564613]
[1761606245156,0.021,114100.0,114090.0,1.39557028]
[1761606245559,0.021,114100.0,114090.0,1.36435925]
[1761606246869,0.021,114100.0,114090.0,1.35564613]
[1761606247113,0.021,114100.0,114090.0,1.36449448]
[1761606247529,0.02141904,114100.0,114090.0,1.36449448]
[1761606248743,0.02141904,114100.0,114090.0,1.35564613]
[1761606249180,0.02141904,114100.0,114090.0,1.36564612]
[1761606250957,0.02141904,114100.0,114090.0,1.37432324]
[1761606254688,0.02141904,114100.0,114090.0,0.84679174]
[1761606254923,0.02141904,114100.0,114090.0,1.51294612]
[1761606255753,0.02141904,114100.0,114090.0,1.72405522]
[1761606256820,0.02141904,114100.0,114090.0,1.72540603]
[1761606259659,0.02141904,114100.0,114090.0,0.98524256]
[1761606259876,0.02141904,114100.0,114090.0,1.21527838]
[1761606260077,0.02141904,114100.0,114090.0,1.55527838]
[1761606260707,0.02141904,114100.0,114090.0,1.40797838]
[1761606264750,0.47621979,114100.0,114090.0,0.70299664]
[1761606264940,0.11123805,114100.0,114090.0,0.70299664]
[1761606268682,0.11123805,114100.0,114090.0,1.06797838]
[1761606268883,0.02141904,114100.0,114090.0,1.06797838]
[1761606270160,0.02141904,114100.0,114090.0,0.70299664]
[1761606270368,0.02141904,114100.0,114090.0,1.06797838]
[1761606272432,0.02141904,114100.0,114090.0,0.70299664]
[1761606272637,0.02141904,114100.0,114090.0,1.06797838]
[1761606274171,0.02141904,114100.0,114090.0,1.77296012]
[1761606274491,0.02141904,114100.0,114090.0,1.80417115]
[1761606274701,0.02141904,114100.0,114090.0,1.83047594]
[1761606275320,0.00441904,114100.0,114090.0,1.82947594]
[1761606275696,0.01841904,114100.0,114090.0,1.83047594]
[1761606276254,0.01841904,114100.0,114090.0,1.84047593]
[1761606277599,0.01841904,114100.0,114090.0,1.8092649]
[1761606278212,0.01841904,114100.0,114090.0,1.9565649]
[1761606280394,0.01841904,114100.0,114090.0,1.9555649]
[1761606280609,0.01841904,114100.0,114090.0,1.9565649]
[1761606280816,0.01841904,114100.0,114090.0,1.22660142]
[1761606281015,0.01841904,114100.0,114090.0,1.9565649]
[1761606282207,0.01841904,114100.0,114090.0,1.59158316]
[1761606282407,0.01841904,114100.0,114090.0,2.08256619]
[1761606283823,0.01841904,114100.0,114090.0,2.08254185]
[1761606284201,0.004,114130.0,114100.0,0.00876424]
[1761606284425,0.004,114130.0,114120.0,0.55273368]
[1761606284607,0.004,114130.0,114120.0,0.73747269]
[1761606285471,0.016,114130.0,114120.0,0.73752119]
[1761606285697,0.004,114130.0,114120.0,1.10249076]
[1761606285863,0.004,114130.0,114120.0,1.44249076]
[1761606286074,0.022,114130.0,114120.0,1.44349076]
[1761606287316,0.022,114130.0,114120.0,0.71355162]
[1761606287536,0.022,114130.0,114120.0,1.104818]
[1761606288107,0.022,114130.0,114120.0,1.07852119]
[1761606290505,0.022,114130.0,114120.0,0.71355162]
[1761606290711,0.022,114130.0,114120.0,1.07852119]
[1761606292366,0.11181901,114130.0,114120.0,0.25395182]
[1761606292548,0.11181901,114130.0,114120.0,0.43753261]
[1761606294066,0.28705777,114130.0,114120.0,0.2622785]
[1761606294287,0.28705777,114130.0,114120.0,0.2119285]
[1761606294288,0.69227734,114130.0,114120.0,0.2119285]
[1761606294933,0.69290568,114130.0,114120.0,0.2119285]
[1761606296329,1.03290568,114130.0,114120.0,0.2119285]
[1761606297639,1.01490568,114130.0,114120.0,0.2109285]
[1761606297841,1.01590568,114130.0,114120.0,0.2109285]
[1761606300241,0.65093611,114130.0,114120.0,0.2109285]
[1761606300445,1.01590568,114130.0,114120.0,0.2109285]
[1761606303844,0.65093611,114130.0,114120.0,0.2109285]
[1761606304057,1.01590568,114130.0,114120.0,0.2109285]
[1761606306155,0.65093611,114130.0,114120.0,0.2109285]
[1761606306368,1.01590568,114130.0,114120.0,0.2109285]
[1761606309322,1.02476568,114130.0,114120.0,0.2109285]
[1761606316076,0.09544735,114130.0,114120.0,0.41400261]
[1761606316321,0.09544735,114130.0,114120.0,0.43865261]
[1761606316606,0.09544735,114130.0,114120.0,0.43765261]
[1761606321532,0.09544735,114130.0,114120.0,0.43865261]
[1761606321741,0.09544735,114130.0,114120.0,0.52847162]
[1761606322805,0.00562834,114130.0,114120.0,0.89344119]
[1761606323835,0.00462834,114130.0,114120.0,0.89344119]
[1761606324047,0.00462834,114130.0,114120.0,0.90644119]
[1761606324269,0.00562834,114130.0,114120.0,0.90644119]
[1761606325607,0.00562834,114130.0,114120.0,1.24644119]
[1761606326916,0.00562834,114130.0,114120.0,0.88147162]
[1761606327813,0.00562834,114130.0,114120.0,1.24644119]
[1761606330270,0.00562834,114130.0,114120.0,1.61141076]
[1761606330495,0.00562834,114130.0,114120.0,1.68969546]
[1761606330990,0.0042,114150.0,114140.0,0.1762234]
[1761606331200,0.0042,114150.0,114140.0,0.73109781]
[1761606331412,0.0042,114150.0,114140.0,0.77100781]
[1761606332054,0.0042,114150.0,114140.0,0.25027824]
[1761606332267,0.09401901,114150.0,114140.0,0.63635824]
[1761606332707,0.09401901,114150.0,114140.0,0.63735824]
[1761606333337,0.09401901,114150.0,114140.0,0.63635824]
[1761606335521,0.09401901,114150.0,114140.0,0.63735824]
[1761606335729,0.09401901,114150.0,114140.0,0.63635824]
[1761606335967,0.09401901,114150.0,114140.0,0.63735824]
[1761606336557,0.09443778,114150.0,114140.0,0.63735824]
[1761606336946,0.09443778,114150.0,114140.0,0.63635824]
[1761606337157,0.09443778,114150.0,114140.0,0.63735824]
[1761606337521,0.09443778,114150.0,114140.0,0.63635824]
[1761606337716,0.09443778,114150.0,114140.0,0.63735824]
[1761606339235,0.09443778,114150.0,114140.0,0.64877824]
[1761606339449,0.09443778,114150.0,114140.0,1.01374781]
[1761606339661,0.00461877,114150.0,114140.0,1.01374781]
[1761606340739,0.00461877,114150.0,114140.0,0.64877824]
[1761606343760,0.00461877,114150.0,114140.0,1.01355141]
[1761606347973,0.00461877,114150.0,114140.0,1.37832458]
[1761606354069,0.00461877,114150.0,114140.0,1.01355141]
[1761606356663,0.00461877,114150.0,114140.0,0.64777824]
[1761606356883,0.45921095,114150.0,114140.0,0.64749824]
[1761606357753,0.09443778,114150.0,114140.0,0.64749824]
[1761606357965,0.09443778,114150.0,114140.0,0.64849824]
[1761606358610,0.09443778,114150.0,114140.0,0.64749824]
[1761606359055,0.09443778,114150.0,114140.0,0.64849824]
[1761606359483,0.09443778,114150.0,114140.0,0.64749824]
[1761606359700,0.09443778,114150.0,114140.0,0.64849824]
[1761606362584,0.09443778,114150.0,114140.0,1.01327141]
[1761606363705,0.09443778,114150.0,114140.0,0.64849824]
[1761606363920,0.09443778,114150.0,114140.0,1.01327141]
[1761606364134,0.09443778,114150.0,114140.0,0.64849824]
[1761606368492,0.45921095,114150.0,114140.0,0.64849824]
[1761606368732,0.09443778,114150.0,114140.0,0.64849824]
[1761606371381,0.45921095,114150.0,114140.0,0.64849824]
[1761606371812,0.09443778,114150.0,114140.0,0.64849824]
[1761606373795,0.09443778,114150.0,114140.0,1.01227141]
[1761606374505,0.09443778,114150.0,114140.0,1.01327141]
[1761606374725,0.09443778,114150.0,114140.0,0.64849824]
[1761606374939,0.09443778,114150.0,114120.0,0.0133185]
[1761606374940,0.17523876,114130.0,114120.0,0.0133185]
[1761606375163,0.17523876,114130.0,114120.0,0.2106485]
[1761606375164,0.63869094,114130.0,114120.0,0.2106485]
[1761606375381,0.67708094,114130.0,114120.0,0.2106485]
[1761606376256,0.68008094,114130.0,114120.0,0.38590261]
[1761606378068,0.29214777,114130.0,114120.0,0.41294261]
[1761606378290,0.65692094,114130.0,114120.0,0.41294261]
[1761606379023,0.66551503,114130.0,114120.0,0.41294261]
[1761606379268,0.66551503,114130.0,114120.0,0.2376885]
[1761606379479,0.66551503,114130.0,114120.0,0.41294261]
[1761606380537,0.66551503,114130.0,114120.0,0.2106485]
[1761606380748,0.68867503,114130.0,114120.0,0.2106485]
[1761606382451,1.0534482,114130.0,114120.0,0.2106485]
[1761606382670,1.3934482,114130.0,114120.0,0.2106485]
[1761606383282,1.41975751,114130.0,114120.0,0.2106485]
[1761606384331,1.41675751,114130.0,114120.0,0.2106485]
[1761606384520,1.43875751,114130.0,114120.0,0.2116485]
[1761606389056,1.07398434,114130.0,114120.0,0.2116485]
[1761606389482,1.04223025,114130.0,114120.0,0.2271585]
[1761606389690,1.01592094,114130.0,114120.0,0.43688261]
[1761606389866,1.01592094,114130.0,114120.0,0.41406261]
[1761606390842,0.84068218,114130.0,114120.0,0.41406261]
[1761606391051,1.01592094,114130.0,114120.0,0.41406261]
[1761606391263,0.84068218,114130.0,114120.0,0.41406261]
[1761606391696,1.01592094,114130.0,114120.0,0.41406261]
[1761606392158,0.13590901,114130.0,114120.0,0.47644279]
[1761606392379,0.11181901,114130.0,114120.0,0.86503596]
[1761606392802,0.11181901,114130.0,114120.0,0.50026279]
[1761606393007,0.11181901,114130.0,114120.0,0.49926279]
[1761606393450,0.08981901,114130.0,114120.0,0.49826279]
[1761606394497,0.08981901,114130.0,114120.0,0.50026279]
[1761606394711,0.0002094,114140.0,114130.0,0.17523876]
[1761606394925,0.09002841,114140.0,114130.0,0.29376891]
[1761606395128,0.09002841,114140.0,114130.0,0.22621876]
[1761606395367,0.45480158,114140.0,114130.0,0.22521876]
[1761606395575,0.46986158,114140.0,114130.0,0.20239876]
[1761606395804,0.09002841,114140.0,114130.0,0.22621876]
[1761606396729,0.09002841,114140.0,114130.0,0.22521876]
[1761606396935,0.09102841,114140.0,114130.0,0.31603777]
[1761606397353,0.09102841,114140.0,114130.0,0.31503777]
[1761606399672,0.09102841,114140.0,114130.0,0.67981094]
[1761606400064,0.09102841,114140.0,114130.0,0.68081094]
[1761606400485,0.09102841,114140.0,114130.0,0.31603777]
[1761606400701,0.09002841,114140.0,114130.0,0.31603777]
[1761606401117,0.09002841,114140.0,114130.0,0.31803777]
[1761606401326,0.09002841,114140.0,114130.0,0.31603777]
[1761606401739,0.09002841,114140.0,114130.0,0.31803777]
[1761606412824,0.69118067,114140.0,114130.0,0.17723876]
[1761606413040,0.66927775,114140.0,114130.0,0.38787876]
[1761606413471,0.30440181,114140.0,114130.0,0.38787876]
[1761606413692,0.66927775,114140.0,114130.0,0.38787876]
[1761606413893,0.66927775,114140.0,114130.0,0.38587876]
[1761606414364,0.47096435,114140.0,114130.0,0.40138876]
[1761606414571,0.09102841,114140.0,114130.0,0.43585876]
[1761606415285,0.09102841,114140.0,114130.0,0.5157639]
[1761606415495,0.09102841,114140.0,114130.0,0.5167639]
[1761606418190,0.66991775,114140.0,114130.0,0.05608]
[1761606418395,0.66991775,114140.0,114130.0,0.21064]
[1761606421430,0.26625181,114140.0,114130.0,0.43820876]
[1761606421861,0.67040775,114140.0,114130.0,0.21064]
[1761606422743,0.67040775,114140.0,114130.0,0.38587876]
[1761606422948,0.64667775,114140.0,114130.0,0.38587876]
[1761606423580,0.64667775,114140.0,114130.0,0.21064]
[1761606423790,0.64667775,114140.0,114130.0,0.38587876]
[1761606426090,0.67090775,114140.0,114130.0,0.21064]
[1761606426432,0.26625181,114140.0,114130.0,0.43749876]
[1761606430594,0.28159181,114140.0,114130.0,0.43749876]
[1761606431034,0.26625181,114140.0,114130.0,0.43749876]
[1761606431396,0.28159181,114140.0,114130.0,0.43749876]
[1761606431622,0.28159181,114140.0,114130.0,0.23776]
[1761606432018,0.28159181,114140.0,114130.0,0.41299876]
[1761606432581,0.26625181,114140.0,114130.0,0.41299876]
[1761606432778,0.26625181,114140.0,114130.0,0.43749876]
[1761606433843,0.09102841,114140.0,114130.0,0.51764067]
[1761606434319,0.26625181,114140.0,114130.0,0.51764067]
[1761606435175,0.28159181,114140.0,114130.0,0.51764067]
[1761606435400,0.28159181,114140.0,114130.0,0.43749876]
[1761606437105,0.28159181,114140.0,114130.0,0.26226]
[1761606437321,0.28159181,114140.0,114130.0,0.41299876]
[1761606437533,0.67069775,114140.0,114130.0,0.21064]
[1761606438243,0.67069775,114140.0,114130.0,0.38587876]
[1761606438871,0.67069775,114140.0,114130.0,0.21064]
[1761606439931,0.30582181,114140.0,114130.0,0.21064]
[1761606440136,0.67069775,114140.0,114130.0,0.21064]
[1761606440782,0.67069775,114140.0,114130.0,0.38587876]
[1761606440977,0.67069775,114140.0,114130.0,0.21064]
[1761606443402,1.01069775,114140.0,114130.0,0.21064]
[1761606443610,1.03761702,114140.0,114130.0,0.21064]
[1761606446902,1.03710502,114140.0,114130.0,0.21064]
[1761606449843,0.67222908,114140.0,114130.0,0.21064]
[1761606450059,1.02895762,114140.0,114130.0,0.21064]
[1761606453754,0.66408168,114140.0,114130.0,0.21064]
[1761606453891,1.02895762,114140.0,114130.0,0.21064]
[1761606455602,1.01018575,114140.0,114130.0,0.21064]
[1761606458196,1.02894104,114140.0,114130.0,0.21064]
[1761606464585,0.6640651,114140.0,114130.0,0.21064]
[1761606467354,0.67220847,114140.0,114130.0,0.21064]
[1761606467576,0.6640651,114140.0,114130.0,0.21064]
[1761606467782,1.03718305,114140.0,114130.0,0.21064]
[1761606468258,1.02903967,114140.0,114130.0,0.21064]
[1761606468526,1.03718383,114140.0,114130.0,0.21064]
[1761606472878,1.02903967,114140.0,114130.0,0.21064]
[1761606473090,1.03718564,114140.0,114130.0,0.21064]
[1761606475439,1.03710673,114140.0,114130.0,0.21064]
[1761606476332,1.4020813,114140.0,114130.0,0.21064]
[1761606476988,1.03710673,114140.0,114130.0,0.21064]
[1761606477553,1.4020813,114140.0,114130.0,0.21064]
[1761606479554,1.03710673,114140.0,114130.0,0.21064]
[1761606484701,1.03710673,114140.0,114130.0,0.23694673]
[1761606485702,1.03710769,114140.0,114130.0,0.23694673]
[1761606487307,0.67213312,114140.0,114130.0,0.23694673]
[1761606487510,1.03710769,114140.0,114130.0,0.23694673]
[1761606489337,0.64790312,114140.0,114130.0,0.25291673]
[1761606489542,1.01287769,114140.0,114130.0,0.26482673]
[1761606489738,0.64790312,114140.0,114130.0,0.24885673]
[1761606490091,1.03546769,114140.0,114130.0,0.23694673]
[1761606491625,1.40044226,114140.0,114130.0,0.23694673]
[1761606491753,1.40044226,114140.0,114130.0,0.18078673]
[1761606491950,1.40044226,114140.0,114130.0,0.23686673]
[1761606492420,1.76541683,114140.0,114130.0,0.02630673]
[1761606492620,1.76541683,114140.0,114120.0,4.85e-05]
[1761606492621,0.51523876,114130.0,114120.0,4.85e-05]
[1761606492863,1.50040844,114130.0,114120.0,0.1303685]
[1761606493068,1.85750592,114130.0,114120.0,0.1303685]
[1761606493279,1.53934846,114130.0,114120.0,0.1303685]